bitfinex/quotes_BTCUSD_20240728
["timestamp","ask_amount","ask_price","bid_price","bid_amount"]
[1722144642331,1.4854568,67539.0,67538.0,0.007]
[1722144642793,1.4854568,67539.0,67538.0,0.005]
[1722144642794,1.7223568,67539.0,67538.0,0.005]
[1722144643026,1.7223568,67539.0,67530.0,0.000924]
[1722144643027,0.59232,67531.0,67530.0,0.000924]
[1722144643213,1.45150595,67531.0,67530.0,0.000924]
[1722144643442,1.45969202,67531.0,67530.0,0.000924]
[1722144643626,1.45985156,67531.0,67530.0,0.000924]
[1722144643827,1.35547694,67531.0,67530.0,0.000924]
[1722144644069,1.45999673,67531.0,67530.0,0.000924]
[1722144644296,1.35547694,67531.0,67530.0,0.000924]
[1722144645520,1.35497566,67531.0,67530.0,0.000924]
[1722144646356,1.35497566,67531.0,67530.0,0.001924]
[1722144646602,1.36097566,67531.0,67530.0,0.002924]
[1722144647358,1.42980941,67531.0,67530.0,0.002924]
[1722144648950,1.79477088,67531.0,67530.0,0.002924]
[1722144649153,1.89477088,67531.0,67530.0,0.002924]
[1722144649530,2.13169888,67531.0,67530.0,0.002924]
[1722144649731,2.12569888,67531.0,67530.0,0.001924]
[1722144649972,2.12569888,67531.0,67530.0,0.000924]
[1722144650177,2.13469888,67531.0,67530.0,0.001924]
[1722144650329,2.20965229,67531.0,67530.0,0.001924]
[1722144650534,2.26758699,67531.0,67530.0,0.001924]
[1722144650734,2.13590607,67531.0,67530.0,0.001924]
[1722144651141,2.25220607,67531.0,67530.0,0.001924]
[1722144651592,2.25220607,67531.0,67530.0,0.002924]
[1722144651593,2.26220607,67531.0,67530.0,0.002924]
[1722144651959,2.26202784,67531.0,67530.0,0.002924]
[1722144652524,2.26235406,67531.0,67530.0,0.002924]
[1722144652922,2.2616912,67531.0,67530.0,0.002924]
[1722144653578,2.2616861,67531.0,67530.0,0.002824]
[1722144653996,2.2616861,67531.0,67516.0,0.000913]
[1722144653997,1.303373,67517.0,67516.0,0.000913]
[1722144654207,0.355608,67490.0,67489.0,0.45077872]
[1722144654376,0.59268,67490.0,67489.0,0.45077872]
[1722144654684,0.0079896,67490.0,67485.0,0.30623855]
[1722144654909,0.0079896,67490.0,67485.0,0.06914955]
[1722144655112,0.118536,67490.0,67485.0,0.06914955]
[1722144655470,0.00849675,67489.0,67485.0,0.18769355]
[1722144655645,0.00849675,67489.0,67485.0,0.06914955]
[1722144655646,0.12703475,67489.0,67485.0,0.06914955]
[1722144655853,0.118539,67488.0,67485.0,0.06914955]
[1722144656160,0.12703674,67488.0,67485.0,0.06914955]
[1722144656900,0.00849774,67488.0,67485.0,0.07314955]
[1722144657113,0.00849774,67488.0,67487.0,0.492023]
[1722144657327,0.001,67488.0,67487.0,0.0607]
[1722144657980,0.00836054,67488.0,67487.0,0.0607]
[1722144658198,0.118536,67490.0,67487.0,0.0607]
[1722144658369,0.00836912,67488.0,67487.0,0.0607]
[1722144658726,0.118533,67492.0,67487.0,0.0607]
[1722144658930,0.00836962,67488.0,67487.0,0.0607]
[1722144659160,0.118533,67492.0,67487.0,0.0607]
[1722144659161,0.118533,67492.0,67487.0,0.179241]
[1722144659475,0.002,67488.0,67487.0,0.183241]
[1722144659672,0.001,67488.0,67487.0,0.183241]
[1722144659981,0.00837061,67488.0,67487.0,0.179241]
[1722144660189,0.119533,67492.0,67487.0,0.179241]
[1722144660488,0.00836664,67488.0,67487.0,0.0617]
[1722144660732,0.001,67488.0,67487.0,0.180241]
[1722144660947,0.00935894,67488.0,67487.0,0.179241]
[1722144661171,0.001,67488.0,67487.0,0.0607]
[1722144661435,0.00935894,67488.0,67487.0,0.297782]
[1722144661685,0.001,67488.0,67487.0,0.416323]
[1722144661911,0.001,67488.0,67487.0,0.179241]
[1722144662429,0.002,67488.0,67487.0,0.183241]
[1722144663165,0.01036138,67488.0,67487.0,0.183241]
[1722144663390,0.002,67488.0,67487.0,0.183241]
[1722144663616,0.01036058,67488.0,67487.0,0.183241]
[1722144663807,0.002,67488.0,67487.0,0.183241]
[1722144665100,0.002,67488.0,67487.0,0.0647]
[1722144665339,0.002,67488.0,67487.0,0.183241]
[1722144665584,0.01037064,67488.0,67487.0,0.183241]
[1722144665808,0.002,67488.0,67487.0,0.183241]
[1722144666028,0.01036959,67488.0,67487.0,0.183241]
[1722144666244,0.002,67488.0,67487.0,0.183241]
[1722144666466,0.002,67488.0,67487.0,0.657405]
[1722144666691,0.002,67488.0,67487.0,0.98336457]
[1722144666930,0.002,67488.0,67487.0,1.22044657]
[1722144668288,0.001,67488.0,67487.0,1.21644657]
[1722144668726,0.002,67488.0,67487.0,1.22644657]
[1722144668965,0.002,67488.0,67487.0,1.46352857]
[1722144669228,0.4771,67509.0,67492.0,0.1364]
[1722144669457,0.197996,67513.0,67507.0,0.0607]
[1722144669704,0.00843254,67508.0,67507.0,0.297712]
[1722144669931,0.236989,67514.0,67507.0,0.0607]
[1722144670154,0.118498,67512.0,67507.0,0.179205]
[1722144670389,0.46674157,67516.0,67507.0,0.179205]
[1722144670390,0.00842863,67513.0,67507.0,0.0607]
[1722144670587,0.00842863,67513.0,67504.0,0.31272]
[1722144670588,0.00842716,67511.0,67510.0,0.355501]
[1722144670819,0.00842128,67512.0,67511.0,0.668195]
[1722144671041,0.0795,67522.0,67518.0,0.118486]
[1722144671308,0.118475,67525.0,67520.0,0.118483]
[1722144671532,0.19484596,67524.0,67519.0,0.179184]
[1722144671750,0.118475,67525.0,67519.0,0.0607]
[1722144671903,0.07637409,67524.0,67519.0,0.179184]
[1722144672125,0.118475,67525.0,67519.0,0.179184]
[1722144672332,0.236949,67525.0,67519.0,0.0607]
[1722144672554,0.2018083,67524.0,67519.0,0.0607]
[1722144672715,0.12548715,67524.0,67519.0,0.0607]
[1722144672916,0.00701115,67524.0,67519.0,0.0607]
[1722144673563,0.118478,67523.0,67519.0,0.0607]
[1722144673757,0.24396515,67524.0,67519.0,0.0607]
[1722144673935,0.11848,67522.0,67519.0,0.0617]
[1722144674136,0.12548815,67524.0,67519.0,0.180184]
[1722144674335,0.00700968,67521.0,67519.0,0.180184]
[1722144674581,0.118478,67523.0,67519.0,0.0617]
[1722144674733,0.00701079,67520.0,67519.0,0.0617]
[1722144674936,0.118478,67523.0,67519.0,0.0617]
[1722144675455,0.00701225,67522.0,67519.0,0.0617]
[1722144675820,0.118483,67520.0,67519.0,0.0617]
[1722144676021,0.118483,67520.0,67519.0,0.0607]
[1722144676221,0.12549379,67520.0,67516.0,0.18159]
[1722144676445,0.00701079,67520.0,67519.0,0.005]
[1722144676736,0.236963,67521.0,67516.0,0.0631]
[1722144676930,0.00701079,67520.0,67516.0,0.0631]
[1722144677166,0.00801079,67520.0,67519.0,0.006]
[1722144677572,0.00801079,67520.0,67519.0,0.124485]
[1722144677768,0.00701079,67520.0,67519.0,0.355455]
[1722144677967,0.00701079,67520.0,67519.0,0.118485]
[1722144678375,0.119315,67525.0,67520.0,0.0833]
[1722144678376,0.00084,67525.0,67520.0,0.0833]
[1722144678573,0.00084,67525.0,67523.0,0.118477]
[1722144678774,0.00084,67525.0,67520.0,0.0833]
[1722144678998,0.00084,67525.0,67516.0,0.0631]
[1722144679204,0.118481,67522.0,67517.0,0.118488]
[1722144679424,0.00084,67525.0,67516.0,0.187589]
[1722144679425,0.001,67520.0,67516.0,0.187589]
[1722144679583,0.118481,67521.0,67520.0,0.002]
[1722144679788,0.118481,67521.0,67520.0,0.011]
[1722144680235,0.118481,67521.0,67520.0,0.002]
[1722144680695,0.355444,67521.0,67520.0,0.002]
[1722144680899,0.437944,67521.0,67520.0,0.002]
[1722144681103,0.438944,67521.0,67520.0,0.009]
[1722144681500,0.675907,67521.0,67520.0,0.009]
[1722144681726,0.675907,67521.0,67520.0,0.007]
[1722144681927,0.91287,67521.0,67520.0,0.007]
[1722144682164,0.97687,67521.0,67520.0,0.007]
[1722144682542,0.118499,67511.0,67510.0,0.00868844]
[1722144683064,0.118496,67513.0,67510.0,0.00868844]
[1722144683382,0.118494,67514.0,67510.0,0.10868844]
[1722144683521,0.118497,67513.0,67510.0,0.10868844]
[1722144683888,0.118497,67513.0,67510.0,0.1]
[1722144684021,0.118497,67513.0,67510.0,0.114]
[1722144684022,0.001,67511.0,67510.0,0.114]
[1722144684224,0.001,67511.0,67510.0,0.1]
[1722144684426,0.001,67511.0,67509.0,0.00873251]
[1722144684427,0.119499,67511.0,67509.0,0.00873251]
[1722144684626,0.119499,67511.0,67508.0,0.1631]
[1722144685048,0.119499,67511.0,67510.0,0.012]
[1722144685049,0.201999,67511.0,67510.0,0.012]
[1722144685268,0.438997,67511.0,67510.0,0.012]
[1722144685551,0.118507,67507.0,67505.0,0.0631]
[1722144685952,0.118507,67507.0,67503.0,0.10847725]
[1722144686756,0.119507,67507.0,67505.0,0.014]
[1722144686964,0.118507,67506.0,67505.0,0.014]
[1722144687168,0.237002,67510.0,67502.0,0.1631]
[1722144687406,0.118518,67500.0,67499.0,0.0631]
[1722144687735,0.118518,67500.0,67496.0,0.0833]
[1722144687736,0.118522,67498.0,67496.0,0.0631]
[1722144687961,0.24416475,67500.0,67496.0,0.0631]
[1722144688180,0.00711709,67497.0,67496.0,0.0631]
[1722144688426,0.201018,67501.0,67496.0,0.0718204]
[1722144688651,0.00711978,67497.0,67496.0,0.0718204]
[1722144688868,0.118521,67499.0,67496.0,0.0718204]
[1722144689051,0.00711631,67497.0,67496.0,0.0718204]
[1722144689200,0.118521,67499.0,67496.0,0.0718204]
[1722144689396,0.12563532,67498.0,67496.0,0.0718204]
[1722144689596,0.00711332,67498.0,67496.0,0.0858204]
[1722144689801,0.237026,67503.0,67496.0,0.0858204]
[1722144689802,0.118519,67500.0,67496.0,0.0858204]
[1722144690026,0.00711657,67499.0,67496.0,0.1858204]
[1722144690217,0.001,67497.0,67496.0,0.1998204]
[1722144690536,0.007117,67497.0,67496.0,0.3043454]
[1722144690764,0.118518,67500.0,67496.0,0.3043454]
[1722144690974,0.237026,67503.0,67496.0,0.3043454]
[1722144690975,0.00711291,67497.0,67496.0,0.3043454]
[1722144691207,0.118517,67501.0,67496.0,0.2903454]
[1722144691417,0.00711341,67497.0,67496.0,0.5413964]
[1722144691627,0.237024,67504.0,67496.0,0.4228714]
[1722144691846,0.118514,67503.0,67498.0,0.118521]
[1722144692095,0.118515,67502.0,67498.0,0.118521]
[1722144692376,0.00711484,67503.0,67496.0,0.4228714]
[1722144692581,0.00811445,67501.0,67497.0,0.118523]
[1722144692809,0.001,67501.0,67498.0,0.118521]
[1722144693027,0.00704678,67500.0,67499.0,0.11852]
[1722144693244,0.00704678,67500.0,67497.0,0.118522]
[1722144693467,0.00704678,67500.0,67498.0,0.1]
[1722144693698,0.118515,67502.0,67498.0,0.1]
[1722144693924,0.00704443,67499.0,67498.0,0.1]
[1722144694154,0.118515,67502.0,67498.0,0.1]
[1722144694378,0.12556427,67499.0,67498.0,0.113]
[1722144694615,0.11852,67499.0,67498.0,0.013]
[1722144694819,0.00704427,67499.0,67498.0,0.013]
[1722144695043,0.118518,67501.0,67496.0,0.1848204]
[1722144695224,0.36260521,67499.0,67498.0,0.014]
[1722144695455,0.68214521,67499.0,67498.0,0.014]
[1722144695580,0.91918521,67499.0,67498.0,0.014]
[1722144695802,0.91918521,67499.0,67496.0,0.0087204]
[1722144695803,0.35557,67497.0,67496.0,0.0087204]
[1722144695986,0.118529,67494.0,67490.0,0.118535]
[1722144696184,0.00704495,67493.0,67490.0,0.118535]
[1722144696410,0.118529,67494.0,67490.0,0.118535]
[1722144696640,0.00704704,67493.0,67490.0,0.118535]
[1722144696988,0.00704704,67493.0,67488.0,0.30877636]
[1722144697203,0.001,67497.0,67489.0,0.1]
[1722144697468,0.001,67497.0,67496.0,0.260225]
[1722144697896,0.001,67497.0,67496.0,0.497276]
[1722144698277,0.001,67497.0,67496.0,0.734327]
[1722144698709,0.001,67497.0,67496.0,0.971378]
[1722144698923,0.118499,67511.0,67507.0,0.118506]
[1722144699124,0.118499,67511.0,67507.0,0.0657]
[1722144699333,0.1185,67510.0,67507.0,0.0657]
[1722144699565,0.118502,67509.0,67507.0,0.0657]
[1722144699779,0.118504,67508.0,67504.0,0.118511]
[1722144700401,0.118504,67508.0,67507.0,0.002]
[1722144701122,0.118503,67509.0,67507.0,0.002]
[1722144701380,0.0823,67513.0,67508.0,0.118503]
[1722144701821,0.236995,67512.0,67506.0,0.118506]
[1722144702138,0.118501,67510.0,67506.0,0.118506]
[1722144702578,0.00700273,67509.0,67506.0,0.118506]
[1722144704830,0.00700273,67509.0,67508.0,0.118504]
[1722144705297,0.00706286,67509.0,67508.0,0.118504]
[1722144705502,0.001,67509.0,67507.0,0.0657]
[1722144705679,0.001,67509.0,67508.0,0.355512]
[1722144705680,0.00805698,67509.0,67508.0,0.355512]
[1722144705854,0.001,67509.0,67508.0,0.65822]
[1722144706046,0.001,67509.0,67508.0,0.907228]
[1722144706047,0.002,67509.0,67508.0,0.907228]
[1722144706306,0.002,67509.0,67508.0,1.007228]
[1722144706492,0.08314,67525.0,67520.0,0.184182]
[1722144706695,0.118476,67524.0,67520.0,0.184182]
[1722144706893,0.00707126,67524.0,67520.0,0.0657]
[1722144707166,0.00707126,67524.0,67522.0,0.118479]
[1722144707334,0.00707126,67524.0,67523.0,0.118478]
[1722144707481,0.00668009,67524.0,67521.0,0.236962]
[1722144707747,0.00668009,67524.0,67522.0,0.118478]
[1722144707948,0.00668009,67524.0,67523.0,0.118478]
[1722144708175,0.00668009,67524.0,67522.0,0.118479]
[1722144708367,0.00668009,67524.0,67523.0,0.118478]
[1722144709013,0.00668009,67524.0,67523.0,0.355434]
[1722144709308,0.00084,67525.0,67524.0,0.355428]
[1722144709822,0.00785197,67525.0,67524.0,0.355428]
[1722144709975,0.00084,67525.0,67524.0,0.355428]
[1722144710183,0.00785197,67525.0,67524.0,0.355428]
[1722144710376,0.00084,67525.0,67524.0,0.118476]
[1722144710625,0.00785197,67525.0,67523.0,0.001]
[1722144710779,0.00084,67525.0,67524.0,0.118476]
[1722144710981,0.00084,67525.0,67524.0,0.355428]
[1722144711167,0.00084,67525.0,67524.0,0.118476]
[1722144712176,0.00084,67525.0,67524.0,0.355428]
[1722144712595,0.00084,67525.0,67524.0,0.59238]
[1722144712798,0.00084,67525.0,67524.0,0.355428]
[1722144713515,0.00084,67525.0,67524.0,0.358428]
[1722144713720,0.00184,67525.0,67524.0,0.367428]
[1722144714162,0.00184,67525.0,67524.0,0.74608]
[1722144714573,0.00184,67525.0,67524.0,0.84608]
[1722144715345,0.00184,67525.0,67524.0,1.083032]
[1722144715718,0.00184,67525.0,67524.0,1.080032]
[1722144715934,0.00084,67525.0,67524.0,1.22129157]
[1722144716127,0.00084,67525.0,67524.0,1.23129157]
[1722144716344,0.00184,67525.0,67524.0,1.24429157]
[1722144716662,0.00184,67525.0,67524.0,1.00733957]
[1722144717695,0.00184,67525.0,67524.0,1.24429157]
[1722144717890,0.00184,67525.0,67524.0,1.00733957]
[1722144718092,0.00184,67525.0,67524.0,0.78108]
[1722144719443,0.00184,67525.0,67524.0,0.123]
[1722144719675,0.00184,67525.0,67524.0,0.023]
[1722144719906,0.00184,67525.0,67524.0,0.141476]
[1722144720151,0.00900642,67525.0,67524.0,0.141476]
[1722144720362,0.00184,67525.0,67524.0,0.141476]
[1722144720563,0.00900642,67525.0,67524.0,0.141476]
[1722144720760,0.00184,67525.0,67524.0,0.378428]
[1722144721013,0.00900642,67525.0,67524.0,0.67708]
[1722144721235,0.00184,67525.0,67524.0,0.67708]
[1722144723892,0.00184,67525.0,67524.0,1.24229157]
[1722144724588,0.00166176,67525.0,67524.0,1.24229157]
[1722144726780,0.00166176,67525.0,67524.0,1.47924357]
[1722144728644,0.00166176,67525.0,67524.0,1.48124357]
[1722144728875,0.00166176,67525.0,67524.0,1.47924357]
[1722144729558,0.00284,67539.0,67524.0,1.47924357]
[1722144729559,0.00284,67539.0,67538.0,0.82916]
[1722144729791,0.00284,67539.0,67538.0,0.89086]
[1722144731864,0.00284,67539.0,67538.0,0.90486]
[1722144732084,0.00284,67539.0,67538.0,0.91586]
[1722144732313,0.00284,67539.0,67538.0,0.90486]
[1722144732543,0.00284,67539.0,67538.0,0.620257]
[1722144733264,0.00284,67539.0,67538.0,0.85716]
[1722144734937,0.00284,67539.0,67538.0,0.99686]
[1722144735741,0.00284,67539.0,67538.0,1.09686]
[1722144736187,0.00284,67539.0,67538.0,1.24711957]
[1722144736402,0.00284,67539.0,67538.0,1.68843716]
[1722144736611,0.00835,67547.0,67546.0,0.654887]
[1722144737974,0.00835,67547.0,67546.0,0.896762]
[1722144738756,0.00835,67547.0,67546.0,1.22552157]
[1722144738958,0.00835,67557.0,67553.0,0.828978]
[1722144739240,0.00835,67557.0,67553.0,1.35928857]
[1722144739424,0.00835,67557.0,67553.0,1.45928857]
[1722144739579,0.00835,67557.0,67553.0,2.14461102]
[1722144739781,0.00835,67557.0,67553.0,1.90776002]
[1722144739988,0.002,67559.0,67558.0,1.065748]
[1722144740201,0.002,67559.0,67558.0,1.57250757]
[1722144740567,0.002,67559.0,67558.0,1.14187457]
[1722144740987,0.002,67559.0,67558.0,0.991615]
[1722144741422,0.002,67559.0,67558.0,0.692082]
[1722144742697,0.002,67559.0,67558.0,0.720082]
[1722144743303,0.002,67559.0,67558.0,0.9654222]
[1722144744153,0.002,67559.0,67558.0,1.0439222]
[1722144744373,0.002,67559.0,67558.0,1.19418177]
[1722144744576,0.002,67559.0,67558.0,1.49371477]
[1722144745463,0.002,67559.0,67558.0,2.10300618]
[1722144745698,0.00835,67577.0,67576.0,0.355155]
[1722144746096,0.01586039,67577.0,67576.0,0.355155]
[1722144746301,0.00835,67577.0,67576.0,0.118385]
[1722144746498,0.01586039,67577.0,67576.0,0.118385]
[1722144747024,0.01586039,67577.0,67576.0,0.355155]
[1722144747209,0.01586039,67577.0,67575.0,0.118386]
[1722144747356,0.01586039,67577.0,67576.0,0.125385]
[1722144749190,0.01586039,67577.0,67576.0,0.128385]
[1722144749393,0.01586039,67577.0,67576.0,0.365155]
[1722144749608,0.00476039,67577.0,67576.0,0.601925]
[1722144749810,0.00705206,67577.0,67576.0,0.365155]
[1722144749971,0.002,67579.0,67578.0,0.118381]
[1722144750172,0.002,67579.0,67578.0,0.355144]
[1722144750775,0.002,67579.0,67578.0,0.591907]
[1722144751200,0.002,67579.0,67578.0,0.592907]
[1722144751945,0.002,67579.0,67578.0,0.356144]
[1722144752351,0.002,67579.0,67578.0,0.355144]
[1722144752767,0.002,67579.0,67578.0,0.596907]
[1722144753170,0.002,67579.0,67578.0,0.97892957]
[1722144753553,0.002,67579.0,67578.0,1.05562957]
[1722144753909,0.002,67579.0,67578.0,1.14262957]
[1722144754047,0.002,67579.0,67578.0,1.16547151]
[1722144754248,0.002,67579.0,67578.0,0.92770851]
[1722144754662,0.002,67579.0,67578.0,0.91370851]
[1722144755052,0.002,67579.0,67578.0,0.92470851]
[1722144756945,0.002,67579.0,67578.0,0.93870851]
[1722144757279,0.002,67579.0,67578.0,1.17547151]
[1722144758277,0.002,67579.0,67578.0,1.25127151]
[1722144760530,0.002,67579.0,67578.0,0.91383471]
[1722144760733,0.002,67579.0,67578.0,0.87600851]
[1722144760931,0.002,67579.0,67578.0,0.87100851]
[1722144761755,0.002,67579.0,67578.0,1.10777151]
[1722144761974,0.002,67579.0,67578.0,0.87100851]
[1722144762140,0.002,67579.0,67578.0,1.10777151]
[1722144762342,0.002,67579.0,67578.0,0.87100851]
[1722144762582,0.002,67579.0,67578.0,1.10777151]
[1722144762757,0.002,67579.0,67578.0,0.87100851]
[1722144764436,9e-05,67580.0,67579.0,0.118379]
[1722144764628,0.00834,67584.0,67583.0,0.654862]
[1722144764783,0.00834,67584.0,67583.0,1.14186657]
[1722144766008,0.00834,67584.0,67583.0,2.15451157]
[1722144766173,0.00834,67584.0,67583.0,2.17751157]
[1722144766375,0.00834,67584.0,67583.0,2.41425657]
[1722144766593,0.00834,67584.0,67583.0,2.52105996]
[1722144766793,0.00834,67589.0,67586.0,1.206507]
[1722144766996,0.00834,67589.0,67586.0,1.83010823]
[1722144767234,0.00834,67589.0,67586.0,1.85310823]
[1722144767412,0.00834,67589.0,67586.0,1.96311381]
[1722144767616,0.00834,67589.0,67586.0,1.94037704]
[1722144767875,0.00834,67589.0,67586.0,1.83010823]
[1722144768196,0.00834,67589.0,67586.0,1.84410823]
[1722144768485,0.00834,67589.0,67586.0,1.78220823]
[1722144768634,0.00834,67589.0,67586.0,1.48017323]
[1722144768795,0.00334,67587.0,67586.0,0.87009657]
[1722144770454,0.00334,67587.0,67586.0,0.86843519]
[1722144770810,0.00334,67587.0,67586.0,1.10517019]
[1722144771083,0.00334,67587.0,67586.0,0.86843519]
[1722144771230,0.00334,67587.0,67586.0,0.8771171]
[1722144772857,0.00334,67587.0,67586.0,1.1138521]
[1722144773321,0.00334,67587.0,67586.0,0.8771171]
[1722144773863,0.00334,67587.0,67586.0,1.1138521]
[1722144774066,0.00334,67587.0,67586.0,0.8771171]
[1722144774633,0.00334,67587.0,67586.0,1.1138521]
[1722144775186,0.00334,67587.0,67586.0,0.8771171]
[1722144775394,0.00334,67587.0,67586.0,1.1138521]
[1722144775794,0.00334,67587.0,67586.0,1.1791521]
[1722144776419,0.00334,67587.0,67586.0,1.2542521]
[1722144776940,0.00334,67587.0,67586.0,1.4909871]
[1722144779350,0.00334,67587.0,67586.0,1.60065696]
[1722144779661,0.00334,67587.0,67586.0,1.64477279]
[1722144780118,0.00334,67587.0,67586.0,1.64677279]
[1722144780402,0.00334,67587.0,67586.0,1.65283071]
[1722144780560,0.00761664,67588.0,67587.0,0.892258]
[1722144780763,0.00761664,67588.0,67587.0,2.2448205]
[1722144781127,0.00761664,67588.0,67587.0,2.48154991]
[1722144781261,0.00761664,67588.0,67587.0,2.54779]
[1722144781466,0.00761664,67588.0,67587.0,2.54778945]
[1722144781651,0.00761664,67588.0,67587.0,2.54978945]
[1722144781850,0.00761664,67588.0,67587.0,2.48354936]
[1722144782107,0.00095664,67589.0,67588.0,1.128976]
[1722144782322,0.00095664,67589.0,67588.0,1.51190329]
[1722144782514,0.00095664,67589.0,67588.0,1.50990329]
[1722144782658,0.00095664,67589.0,67588.0,1.59827057]
[1722144782871,0.00095664,67589.0,67588.0,1.55396156]
[1722144783071,0.00095664,67589.0,67588.0,1.50977628]
[1722144783505,0.00095664,67589.0,67588.0,1.52377546]
[1722144783719,0.00095664,67589.0,67588.0,1.59007268]
[1722144784326,0.00095664,67589.0,67588.0,1.59207268]
[1722144784555,0.00095664,67589.0,67588.0,1.62817185]
[1722144785106,0.00095664,67589.0,67588.0,1.53977546]
[1722144785308,0.00095664,67589.0,67588.0,1.62817185]
[1722144785525,0.00095664,67589.0,67588.0,1.53777546]
[1722144785727,0.00095664,67589.0,67588.0,1.62617185]
[1722144786262,0.00095664,67589.0,67588.0,1.53977546]
[1722144786639,0.00095664,67589.0,67588.0,1.43023557]
[1722144786843,0.0152205,67594.0,67593.0,0.828485]
[1722144787035,0.0152205,67594.0,67593.0,1.33424457]
[1722144787431,0.0152205,67594.0,67593.0,1.64805457]
[1722144787432,0.0014904,67594.0,67593.0,1.64805457]
[1722144787601,0.0014904,67594.0,67593.0,1.64605457]
[1722144787901,0.0014904,67594.0,67593.0,1.75580347]
[1722144788058,0.0014904,67594.0,67593.0,1.75780347]
[1722144788261,0.0014904,67594.0,67593.0,1.77180347]
[1722144788480,0.0014904,67594.0,67593.0,1.83701808]
[1722144788848,0.0014904,67594.0,67593.0,1.80680347]
[1722144789889,0.0014904,67594.0,67593.0,1.80678339]
[1722144790332,0.0014904,67594.0,67593.0,1.80878339]
[1722144790529,0.0014904,67594.0,67593.0,1.87513146]
[1722144790704,0.0014904,67594.0,67593.0,1.78378353]
[1722144790908,0.0014904,67594.0,67593.0,1.75291646]
[1722144791537,0.0014904,67594.0,67593.0,1.70868353]
[1722144791732,0.0014904,67594.0,67593.0,1.59895457]
[1722144791963,0.0014904,67594.0,67593.0,1.75273527]
[1722144793189,0.0014904,67594.0,67593.0,1.64319339]
[1722144793384,0.0014904,67594.0,67593.0,1.75271519]
[1722144793657,0.0014904,67594.0,67593.0,1.70847637]
[1722144794034,0.0014904,67594.0,67593.0,1.71047637]
[1722144794231,0.0014904,67594.0,67593.0,1.70847637]
[1722144795404,0.0014904,67594.0,67593.0,1.75271519]
[1722144795604,0.0014904,67594.0,67593.0,1.71715341]
[1722144796481,0.0014904,67594.0,67593.0,1.60763161]
[1722144796689,0.1549304,67607.0,67606.0,0.591662]
[1722144796859,0.1549304,67607.0,67606.0,0.691662]
[1722144798969,0.1549304,67607.0,67606.0,0.705662]
[1722144799265,0.1549304,67607.0,67606.0,0.715662]
[1722144799467,0.0068304,67607.0,67606.0,0.952327]
[1722144800698,0.0331304,67610.0,67609.0,0.591635]
[1722144802188,0.0331304,67610.0,67609.0,0.828289]
[1722144802429,0.0331304,67610.0,67609.0,0.605635]
[1722144802611,0.0945304,67610.0,67609.0,0.605635]
[1722144802943,0.0945304,67610.0,67609.0,0.615635]
[1722144803886,0.0945304,67610.0,67609.0,0.024]
[1722144804109,0.45722529,67610.0,67609.0,0.024]
[1722144804352,0.17581874,67610.0,67609.0,0.024]
[1722144804835,0.10224929,67610.0,67609.0,0.024]
[1722144805059,0.06911889,67610.0,67606.0,0.00862558]
[1722144805266,0.0763,67609.0,67605.0,0.118333]
[1722144805490,0.18744489,67610.0,67605.0,0.12694814]
[1722144805491,0.00861347,67608.0,67605.0,0.12694814]
[1722144805734,0.0015542,67606.0,67605.0,0.12694814]
[1722144805946,0.0763,67607.0,67605.0,0.00861514]
[1722144806155,0.08401916,67607.0,67604.0,0.118336]
[1722144806380,0.1377,67605.0,67604.0,0.118336]
[1722144806756,0.1454177,67605.0,67604.0,0.355008]
[1722144807196,0.1454177,67605.0,67604.0,0.59168]
[1722144807334,0.0763,67605.0,67604.0,0.59168]
[1722144807534,0.0614,67610.0,67609.0,0.354981]
[1722144808118,0.1377,67610.0,67609.0,0.354981]
[1722144808376,0.1377,67610.0,67607.0,0.236658]
[1722144808551,0.1377,67610.0,67609.0,0.354981]
[1722144808814,0.1377,67610.0,67609.0,0.355981]
[1722144808972,0.1377,67610.0,67609.0,0.592635]
[1722144809384,0.1377,67610.0,67609.0,0.595635]
[1722144810065,0.1377,67610.0,67609.0,0.594635]
[1722144810430,0.1377,67610.0,67609.0,0.601635]
[1722144810632,0.1377,67610.0,67609.0,0.598635]
[1722144810830,0.1377,67610.0,67609.0,0.591635]
[1722144810831,0.0763,67610.0,67609.0,0.591635]
[1722144811034,0.0763,67611.0,67610.0,0.354976]
[1722144811241,0.0763,67611.0,67610.0,0.591627]
[1722144813346,0.0763,67611.0,67610.0,0.601627]
[1722144814151,0.0763,67611.0,67610.0,0.845278]
[1722144814353,0.0763,67611.0,67610.0,0.608627]
[1722144814557,0.0763,67611.0,67610.0,0.371976]
[1722144814716,0.0763,67611.0,67610.0,0.608627]
[1722144814914,0.256023,67611.0,67610.0,0.017]
[1722144815122,0.33740623,67611.0,67610.0,0.017]
[1722144815370,0.57405323,67611.0,67610.0,0.017]
[1722144815587,0.33740434,67611.0,67610.0,0.017]
[1722144816128,0.33835286,67611.0,67610.0,0.017]
[1722144816331,0.33740434,67611.0,67610.0,0.017]
[1722144816539,0.57405134,67611.0,67610.0,0.017]
[1722144817170,0.21908134,67611.0,67610.0,0.017]
[1722144817484,0.33740434,67611.0,67610.0,0.017]
[1722144817708,0.21908134,67611.0,67610.0,0.017]
[1722144818072,0.33740434,67611.0,67610.0,0.017]
[1722144818608,0.33340434,67611.0,67610.0,0.017]
[1722144818827,0.49639556,67611.0,67610.0,0.017]
[1722144819009,0.56939479,67611.0,67610.0,0.017]
[1722144819212,0.49639556,67611.0,67610.0,0.017]
[1722144819369,0.56916373,67611.0,67610.0,0.017]
[1722144820042,0.43546373,67611.0,67610.0,0.46777872]
[1722144820252,0.00834,67615.0,67614.0,0.118318]
[1722144820397,0.002,67619.0,67618.0,0.118311]
[1722144820580,0.002,67619.0,67614.0,0.37334166]
[1722144820798,0.002,67619.0,67618.0,0.354934]
[1722144820989,0.002,67619.0,67610.0,0.42749141]
[1722144821231,0.0676397,67618.0,67617.0,0.118313]
[1722144821435,0.0676397,67618.0,67615.0,0.118316]